bitfinex/quotes_ETHUSD_20240822
["timestamp","ask_amount","ask_price","bid_price","bid_amount"]
[1724313488447,0.378493,2642.0,2641.5,3.0]
[1724313488908,21.980693,2642.3,2641.5,3.0]
[1724313489240,3.78493,2642.1,2641.5,3.0]
[1724313489733,3.78515,2641.9,2641.5,3.0]
[1724313490353,7.57038,2641.9,2641.5,3.0]
[1724313490873,3.78537,2641.8,2641.5,3.0]
[1724313491083,3.78516,2641.9,2641.4,15.0]
[1724313491464,3.78536,2641.8,2641.4,15.0]
[1724313491650,0.757052,2641.7,2641.4,15.0]
[1724313492377,3.78562,2641.6,2641.4,15.0]
[1724313493082,3.78572,2641.5,2641.4,15.0]
[1724313493265,7.57144,2641.5,2641.4,15.0]
[1724313493472,3.78572,2641.5,2641.4,15.0]
[1724313493980,3.78562,2641.6,2641.4,15.0]
[1724313494156,3.78572,2641.5,2641.4,15.0]
[1724313494352,3.78558,2641.6,2641.4,15.0]
[1724313495236,3.78572,2641.5,2641.4,15.0]
[1724313495491,4.638423,2641.5,2641.4,15.0]
[1724313495987,8.424143,2641.5,2641.4,15.0]
[1724313499509,4.638423,2641.5,2641.4,15.0]
[1724313499880,0.852703,2641.5,2641.4,15.0]
[1724313500292,0.95573,2641.7,2641.4,15.0]
[1724313500883,3.78558,2641.6,2641.4,15.0]
[1724313501098,4.74117,2641.7,2641.4,15.0]
[1724313501474,3.78544,2641.7,2641.4,15.0]
[1724313502104,7.57097,2641.7,2641.4,15.0]
[1724313502298,3.78544,2641.7,2641.4,15.0]
[1724313503438,3.78542,2641.8,2641.4,15.0]
[1724313503765,0.757067,2641.7,2641.4,15.0]
[1724313503903,3.78542,2641.8,2641.4,15.0]
[1724313504101,7.57082,2641.8,2641.4,15.0]
[1724313504709,3.7854,2641.8,2641.4,15.0]
[1724313504904,14.18012,2642.0,2641.4,15.0]
[1724313504905,7.3,2642.0,2641.4,15.0]
[1724313505093,7.3,2642.0,2641.5,3.0]
[1724313505999,9.90055103,2642.0,2641.5,3.0]
[1724313507306,11.08459,2642.3,2641.5,3.0]
[1724313508623,7.3,2642.3,2641.5,3.0]
[1724313509142,11.08458,2642.3,2641.5,3.0]
[1724313509340,1.486912,2642.2,2641.5,3.0]
[1724313510471,1.486912,2642.2,2641.6,9.9267]
[1724313510675,1.486912,2642.2,2641.7,3.0]
[1724313511268,3.78475,2642.2,2641.7,3.0]
[1724313511769,7.56981,2642.1,2641.7,3.0]
[1724313511983,7.56981,2642.1,2641.4,15.0]
[1724313511984,3.78486,2642.1,2641.5,3.0]
[1724313512185,3.78516,2641.9,2641.5,3.0]
[1724313512774,0.756981,2642.0,2641.5,3.0]
[1724313512775,4.542001,2642.0,2641.5,3.0]
[1724313513479,4.542031,2642.0,2641.5,3.0]
[1724313513637,3.78516,2641.9,2641.5,3.0]
[1724313513839,4.2395441,2641.8,2641.5,3.0]
[1724313514047,4.2395441,2641.8,2641.4,15.0]
[1724313514276,0.4542141,2641.8,2641.4,15.0]
[1724313514492,3.78571,2641.6,2641.4,15.0]
[1724313515145,3.78545,2641.7,2641.4,15.0]
[1724313515146,3.78572,2641.5,2641.4,15.0]
[1724313515345,0.42396641,2641.6,2641.4,15.0]
[1724313515617,4.20961641,2641.6,2641.4,15.0]
[1724313515888,3.78572,2641.5,2641.4,15.0]
[1724313516094,1.17807864,2641.5,2641.4,15.0]
[1724313516763,4.96379864,2641.5,2641.4,15.0]
[1724313516975,3.78572,2641.5,2641.4,15.0]
[1724313519314,17.03474,2641.5,2641.4,15.0]
[1724313519510,17.58474,2641.5,2641.4,15.0]
[1724313521708,8.12144,2641.5,2641.4,15.0]
[1724313521934,9.243084,2641.5,2641.4,15.0]
[1724313525282,8.693084,2641.5,2641.4,15.0]
[1724313531315,9.243084,2641.5,2641.4,15.0]
[1724313532018,13.028804,2641.5,2641.4,15.0]
[1724313532782,13.028804,2641.5,2641.4,14.99880716]
[1724313535890,22.361104,2641.5,2641.4,14.99880716]
[1724313538632,26.146824,2641.5,2641.4,4.89785639]
[1724313538823,33.3284914,2641.5,2641.4,6.39e-06]
[1724313539204,32.932544,2641.5,2641.4,6.39e-06]
[1724313539400,35.017544,2641.5,2641.4,6.39e-06]
[1724313541303,35.017544,2641.5,2639.7,9.1359]
[1724313541304,3.78737,2640.4,2639.7,9.1359]
[1724313542316,3.78737,2640.4,2639.8,3.0]
[1724313543532,6.88216,2640.5,2639.8,3.0]
[1724313543934,3.78733,2640.4,2639.8,3.0]
[1724313544159,6.88216,2640.5,2639.8,3.0]
[1724313544160,1.00965749,2640.3,2639.8,3.0]
[1724313545638,6.88217,2640.5,2639.8,3.0]
[1724313546044,3.095,2640.5,2639.8,3.0]
[1724313546367,7.57309,2641.0,2639.9,9.4752]
[1724313546574,1.796809,2640.9,2640.1,9.9794]
[1724313546772,1.796809,2640.9,2640.2,3.0]
[1724313547074,5.583389,2640.9,2640.2,3.0]
[1724313547229,1.796809,2640.9,2640.2,3.0]
[1724313548368,0.9369769,2640.8,2640.3,9.4832]
[1724313548878,1.796809,2640.9,2640.3,9.4832]
[1724313549750,14.18131,2641.1,2640.3,9.4832]
[1724313549952,3.78652,2641.0,2640.3,9.4832]
[1724313550368,14.18131,2641.1,2640.3,9.4832]
[1724313550572,17.96773,2641.1,2640.3,9.4832]
[1724313550768,3.78646,2641.0,2640.3,9.4832]
[1724313550972,3.78674,2640.8,2640.3,9.4832]
[1724313552394,5.583357,2640.9,2640.3,9.4832]
[1724313555661,1.796777,2640.9,2640.3,9.4832]
[1724313555863,5.583437,2640.9,2640.3,9.4832]
[1724313557449,3.78673,2640.8,2640.3,9.4832]
[1724313557749,4.7237267,2640.8,2640.3,9.4832]
[1724313558119,3.78697,2640.7,2640.3,9.4832]
[1724313558991,4.7237367,2640.8,2640.3,9.4832]
[1724313559497,3.78656,2641.0,2640.3,9.4832]
[1724313559681,3.78655,2641.0,2640.3,9.4832]
[1724313560254,3.78665,2640.9,2640.3,9.4832]
[1724313563361,7.57334,2640.9,2640.3,9.4832]
[1724313563552,7.57336,2640.9,2640.3,9.4832]
[1724313563754,0.757336,2640.8,2640.3,9.4832]
[1724313564078,3.78695,2640.7,2640.3,9.4832]
[1724313564279,3.78703,2640.6,2640.3,9.4832]
[1724313565264,3.78703,2640.6,2640.2,3.0]
[1724313565469,0.757398,2640.5,2640.1,3.0]
[1724313566194,4.544618,2640.5,2640.1,3.0]
[1724313567375,3.78732,2640.4,2640.1,3.0]
[1724313567572,0.4544718,2640.3,2640.1,3.0]
[1724313567820,3.78759,2640.2,2639.7,9.2076]
[1724313568119,0.4544718,2640.3,2639.7,9.2076]
[1724313568120,4.2419218,2640.3,2639.7,9.2076]
[1724313568327,0.42417918,2640.2,2639.7,9.2076]
[1724313569417,3.78717,2640.5,2639.8,3.0]
[1724313570908,3.78731,2640.4,2639.8,3.0]
[1724313571427,13.03805,2640.3,2639.8,3.0]
[1724313571587,9.2506,2640.3,2639.4,4.97554949]
[1724313571793,3.78732,2640.4,2639.4,3.0]
[1724313572123,0.4166031,2640.3,2639.4,3.0]
[1724313574724,0.4166031,2640.3,2639.5,10.50038569]
[1724313574927,0.4166031,2640.3,2639.6,3.0]
[1724313575224,0.4166031,2640.3,2639.7,9.1834]
[1724313575523,4.165941,2640.5,2639.8,3.0]
[1724313576023,3.78732,2640.4,2639.8,3.0]
[1724313577177,7.57473,2640.4,2639.8,3.0]
[1724313577407,16.81013,2640.4,2639.8,3.0]
[1724313577596,1.7188841,2640.3,2639.8,3.0]
[1724313578483,3.78761,2640.2,2639.8,3.0]
[1724313580259,3.78774,2640.1,2639.4,9.594]
[1724313580557,3.78774,2640.1,2639.5,3.0]
[1724313582127,9.2940341,2640.3,2639.5,3.0]
[1724313582334,1.85294341,2640.2,2639.6,9.7782]
[1724313582528,0.378711,2640.5,2639.6,9.7782]
[1724313583300,7.953121,2640.5,2639.6,9.7782]
[1724313583410,3.78736,2640.4,2639.6,9.7782]
[1724313583638,3.7876,2640.2,2639.6,9.7782]
[1724313585219,3.78746,2640.3,2639.6,9.7782]
[1724313585419,0.757482,2640.2,2639.6,9.7782]
[1724313585778,3.78704,2640.6,2639.6,9.7782]
[1724313585935,3.78704,2640.6,2639.8,9.4888]
[1724313586335,3.78719,2640.5,2639.8,9.4888]
[1724313586551,0.757423,2640.4,2639.8,9.4888]
[1724313588255,4.544743,2640.4,2639.8,9.4888]
[1724313589465,0.757423,2640.4,2639.8,9.4888]
[1724313589770,4.544773,2640.4,2639.8,9.4888]
[1724313590626,0.757423,2640.4,2639.8,9.4888]
[1724313590855,0.8331903,2640.3,2639.8,9.4888]
[1724313591423,3.78719,2640.5,2639.8,9.4888]
[1724313592048,3.78704,2640.6,2639.8,9.4888]
[1724313592462,3.78697,2640.7,2639.8,9.4888]
[1724313592463,3.78717,2640.5,2639.8,9.4888]
[1724313592691,0.378717,2640.4,2639.8,9.4888]
[1724313594291,3.78697,2640.7,2639.8,9.4888]
[1724313594292,7.57396,2640.7,2639.8,9.4888]
[1724313594787,3.78704,2640.6,2639.8,9.4888]
[1724313595678,7.57396,2640.7,2639.8,9.4888]
[1724313595872,4.544416,2640.6,2639.8,9.4888]
[1724313598087,3.78722,2640.5,2639.8,9.4888]
[1724313598895,3.78732,2640.4,2639.8,9.4888]
[1724313599468,3.78746,2640.3,2639.8,9.4888]
[1724313599796,0.378746,2640.2,2639.8,9.4888]
[1724313600788,0.378746,2640.2,2639.5,12.6867]
[1724313601002,0.378746,2640.2,2639.6,1.31703134]
[1724313601564,0.378746,2640.2,2639.7,9.9258]
[1724313601995,0.378746,2640.2,2639.8,3.0]
[1724313603772,4.166376,2640.2,2639.8,3.0]
[1724313603975,4.5832036,2640.1,2639.8,3.0]
[1724313604289,4.166376,2640.2,2639.6,3.0]
[1724313604687,5.07821,2640.5,2639.6,6.2665532]
[1724313604993,5.07821,2640.5,2639.8,1.291]
[1724313604994,3.78721,2640.5,2639.8,1.291]
[1724313605220,3.78721,2640.5,2639.8,4.291]
[1724313605429,3.78638,2641.1,2640.2,1.291]
[1724313605596,3.0,2641.3,2640.5,9.2728]
[1724313605597,5.0771,2641.3,2640.5,9.2728]
[1724313605788,3.78471,2642.3,2640.2,3.0]
[1724313605789,9.6414,2641.9,2640.9,9.3683]
[1724313606038,3.78529,2641.8,2641.0,1.291]
[1724313606340,1.291,2641.9,2641.0,4.291]
[1724313606535,3.78544,2641.7,2641.0,3.0]
[1724313606886,3.78524,2641.9,2641.0,3.0]
[1724313607630,3.7851,2642.0,2641.1,9.6319]
[1724313607786,5.151792,2642.0,2641.1,9.6319]
[1724313609005,3.78515,2641.9,2641.1,9.6319]
[1724313609219,3.78537,2641.8,2641.1,9.6319]
[1724313609428,3.78515,2641.9,2641.1,9.6319]
[1724313609429,4.542512,2641.7,2641.1,9.6319]
[1724313609723,1.366692,2642.0,2641.1,9.6319]
[1724313610000,3.78495,2642.1,2641.3,9.8253]
[1724313610204,7.5699,2642.1,2641.4,3.0]
[1724313610525,0.75699,2642.0,2641.4,3.0]
[1724313610690,3.78436,2642.5,2641.5,9.1927]
[1724313611192,3.78406,2642.7,2641.7,9.3216]
[1724313611630,3.78406,2642.7,2641.8,3.0]
[1724313612141,3.78406,2642.7,2641.9,9.3216]
[1724313612588,7.5682,2642.7,2641.9,9.3216]
[1724313612805,3.78406,2642.7,2641.9,9.3216]
[1724313613733,3.78452,2642.4,2641.8,3.0]
[1724313613949,3.78452,2642.4,2641.7,3.0]
[1724313614235,3.78423,2642.6,2641.8,9.7544]
[1724313614440,3.78423,2642.6,2641.9,3.0]
[1724313614441,0.378423,2642.5,2641.9,3.0]
[1724313614739,4.162783,2642.5,2641.9,3.0]
[1724313615095,0.378423,2642.5,2641.9,3.0]
[1724313615605,7.56735,2643.0,2642.0,9.1572]
[1724313615804,3.78367,2643.0,2642.1,3.0]
[1724313616019,3.78359,2643.0,2642.0,9.1572]
[1724313616234,3.78487,2642.1,2641.6,9.0294]
[1724313616560,4.163607,2642.0,2641.1,9.7141]
[1724313616695,3.78474,2642.2,2641.1,9.7141]
[1724313617038,3.78445,2642.4,2641.2,9.7141]
[1724313617264,0.756884,2642.3,2641.2,9.7141]
[1724313617757,0.756884,2642.3,2641.4,9.1172]
[1724313618064,3.7842,2642.6,2641.6,9.1172]
[1724313618230,4.59603,2642.6,2641.8,9.7494]
[1724313618441,7.56795,2642.8,2641.8,9.7494]
[1724313618613,7.56792,2642.8,2641.9,3.0]
[1724313618813,0.79469642,2642.7,2642.0,9.7494]
[1724313619140,0.37901419,2642.9,2642.0,9.7494]
[1724313619141,3.78381,2642.9,2642.1,3.0]
[1724313619755,3.78359,2643.0,2642.1,3.0]
[1724313619963,0.37900619,2642.9,2642.1,3.0]
[1724313620513,0.37900619,2642.9,2642.2,9.5044]
[1724313621740,0.37900619,2642.9,2642.3,3.0]
[1724313622767,4.16275619,2642.9,2642.3,3.0]
[1724313622983,3.78401,2642.7,2642.3,3.0]
[1724313623268,0.378401,2642.6,2642.3,3.0]
[1724313623513,3.78998189,2643.1,2642.3,3.0]
[1724313623622,3.78998189,2643.1,2642.4,9.0047]
[1724313623828,0.37899819,2643.0,2642.4,9.0047]
[1724313624718,0.00647189,2643.1,2642.4,9.0047]
[1724313624923,0.00647189,2643.1,2642.5,3.0]
[1724313625227,0.00647189,2643.1,2642.6,9.6902]
[1724313625559,0.00647189,2643.1,2642.8,9.6902]
[1724313626457,0.00647189,2643.1,2642.7,3.0]
[1724313626620,3.7838,2642.9,2642.6,3.0]
[1724313626822,0.37838,2642.8,2642.5,9.1893]
[1724313627023,0.00647189,2643.1,2642.5,9.1893]
[1724313627473,3.78992189,2643.1,2642.5,9.1893]
[1724313627768,7.57343189,2643.1,2642.5,9.1893]
[1724313627973,3.78992189,2643.1,2642.5,9.1893]
[1724313628330,0.37899219,2643.0,2642.5,9.1893]
[1724313629255,4.16260219,2643.0,2642.5,9.1893]
[1724313630094,0.37899219,2643.0,2642.5,9.1893]
[1724313631272,4.16257219,2643.0,2642.5,9.1893]
[1724313631766,4.16258219,2643.0,2642.5,9.1893]
[1724313631970,0.41690541,2642.9,2642.5,9.1893]
[1724313633178,4.20071541,2642.9,2642.3,3.0]
[1724313633357,4.20071541,2642.9,2642.2,9.3624]
[1724313633358,3.78398,2642.8,2642.2,9.3624]
[1724313633555,4.20410854,2642.7,2642.2,9.3624]
[1724313634487,4.20410854,2642.7,2641.5,9.3335]
[1724313634488,3.78455,2642.4,2641.5,9.3335]
[1724313634647,14.05080854,2642.7,2641.5,9.3335]
[1724313634973,1.78347785,2642.6,2641.7,9.3335]
[1724313635326,5.56766785,2642.6,2641.7,9.3335]
[1724313635532,5.56766785,2642.6,2641.8,3.0]
[1724313636794,3.78429,2642.5,2641.8,3.0]
[1724313636950,1.78347785,2642.6,2641.2,9.7266]
[1724313637283,3.78516,2641.9,2641.2,9.7266]
[1724313637652,3.78544,2641.7,2641.2,9.7266]
[1724313637832,3.7853,2641.8,2641.2,9.7266]
[1724313638027,0.37853,2641.7,2641.2,9.7266]
[1724313638562,4.16397,2641.7,2641.2,9.7266]
[1724313638748,3.78558,2641.6,2640.9,9.4056]
[1724313639088,0.37853,2641.7,2640.4,9.4056]
[1724313639089,3.78602,2641.3,2640.4,9.4056]
[1724313639230,3.78618,2641.2,2640.4,9.4056]
[1724313640176,3.78612,2641.3,2640.4,9.4056]
[1724313640329,0.7572,2641.2,2640.4,9.4056]
[1724313640530,0.7572,2641.2,2640.5,3.0]
[1724313641134,3.78568,2641.6,2640.6,9.4056]
[1724313641335,3.7858,2641.5,2640.7,3.0]
[1724313641539,0.757148,2641.4,2640.7,3.0]
[1724313642498,13.63704,2641.7,2640.7,3.0]
[1724313642693,3.7858,2641.5,2640.7,3.0]
[1724313643021,3.78587,2641.4,2640.7,3.0]
[1724313644162,3.78602,2641.3,2640.7,3.0]
[1724313644350,3.7858,2641.5,2640.7,3.0]
[1724313644351,4.164772,2641.2,2640.7,3.0]
[1724313644556,3.78617,2641.2,2640.7,3.0]
[1724313645099,3.78616,2641.2,2640.7,3.0]
[1724313645795,3.78602,2641.3,2640.7,3.0]
[1724313646120,4.543349,2641.2,2640.7,3.0]
[1724313646295,3.78653,2641.0,2640.3,9.9815]
[1724313646507,3.78653,2641.0,2640.4,3.0]
[1724313646659,7.57306,2641.0,2640.4,3.0]
[1724313647003,3.78682,2640.8,2639.8,9.3469]
[1724313647152,0.757306,2640.9,2639.8,9.75678218]
[1724313647371,0.4543846,2640.8,2639.8,10.76147218]
[1724313648218,0.37853,2641.7,2640.5,3.78712]
[1724313648386,3.78566,2641.6,2640.4,9.6903]
[1724313648636,3.78566,2641.6,2640.3,3.58918702]
[1724313648637,3.78588,2641.4,2640.6,9.1928]
[1724313648932,3.78588,2641.4,2640.7,3.0]
[1724313649994,3.78618,2641.2,2640.7,3.0]
[1724313650182,0.378618,2641.1,2640.7,3.0]
[1724313650528,4.164918,2641.1,2640.7,3.0]
[1724313650823,3.7863,2641.1,2640.7,3.0]
[1724313652024,3.78645,2641.0,2640.2,9.2917]
[1724313652331,3.78662,2640.9,2640.2,9.2917]
[1724313653318,3.78662,2640.9,2640.3,3.0]
[1724313653520,0.757307,2640.8,2640.3,3.0]
[1724313654289,4.544037,2640.8,2640.0,9.4233]
[1724313654499,3.78673,2640.8,2640.1,3.0]
[1724313657143,3.7869,2640.7,2640.0,9.4233]
[1724313657322,4.165573,2640.7,2640.0,9.4233]
[1724313658136,3.78706,2640.6,2640.0,9.4233]
[1724313658384,4.165553,2640.7,2640.0,9.4233]
[1724313658735,0.4165553,2640.6,2640.0,9.4233]
[1724313659446,4.165553,2640.7,2640.0,9.4233]
[1724313660166,3.78702,2640.6,2640.0,9.4233]
[1724313661065,0.378673,2640.7,2640.0,9.4233]
[1724313661268,7.3,2640.8,2640.0,9.4233]
[1724313661449,7.3,2640.8,2640.1,3.0]
[1724313662600,7.3,2640.8,2640.2,9.864]
[1724313662804,3.78588,2641.4,2640.4,9.7388]
[1724313663096,3.78603,2641.3,2640.4,9.7388]
[1724313663399,3.78616,2641.2,2640.5,3.0]
[1724313663603,3.78631,2641.1,2640.5,3.0]
[1724313663808,0.378631,2641.0,2640.5,3.0]
[1724313664402,3.78663,2640.9,2640.5,3.0]
[1724313664748,3.78673,2640.8,2640.5,3.0]
[1724313665197,3.78673,2640.8,2640.2,3.0]
[1724313665497,3.7866,2640.9,2640.2,3.0]
[1724313665698,5.108326,2640.9,2640.2,3.0]
[1724313665906,3.78615,2641.2,2640.2,3.0]
[1724313666229,3.78615,2641.2,2640.3,9.0781]
[1724313666492,3.78615,2641.2,2640.4,3.0]
[1724313666702,1.700296,2641.1,2640.4,3.0]
[1724313666902,3.78567,2641.6,2640.5,9.1212]
[1724313667131,0.757113,2641.5,2640.7,9.1212]
[1724313667325,9.2667,2641.8,2640.8,3.0]
[1724313667520,13.05201,2641.8,2640.8,3.0]
[1724313667868,3.78531,2641.8,2640.9,9.7631]
[1724313668085,0.757057,2641.7,2640.9,9.7631]
[1724313668389,4.542517,2641.7,2640.9,9.7631]
[1724313668720,3.78581,2641.5,2640.9,9.7631]
[1724313669430,3.78539,2641.8,2640.9,9.7631]
[1724313669587,0.378539,2641.7,2640.9,9.7631]
[1724313669990,3.78506,2642.0,2641.1,9.0211]
[1724313670542,19.61,2642.3,2641.2,9.24752203]
[1724313670820,19.61,2642.3,2641.3,9.1718]
[1724313671006,3.338954,2642.2,2641.3,9.1718]
[1724313671204,3.338954,2642.2,2641.4,3.0]
[1724313672015,7.123674,2642.2,2641.4,3.0]
[1724313672821,3.78522,2641.9,2641.4,3.0]
[1724313674029,3.78501,2642.0,2641.4,3.0]
[1724313674346,1.0217834,2642.0,2641.4,3.0]
[1724313674829,4.8067934,2642.0,2641.4,3.0]
[1724313675330,1.0217834,2642.0,2641.4,3.0]
[1724313675873,3.78479,2642.2,2641.4,3.0]
[1724313677510,3.78487,2642.1,2641.4,3.0]
[1724313678188,3.78513,2642.0,2641.4,3.0]
[1724313679233,12.82189,2641.9,2641.4,3.0]
[1724313679433,12.82189,2641.9,2641.1,3.0]
[1724313679434,1.660702,2641.8,2641.1,3.0]
[1724313680627,3.78519,2641.9,2641.1,3.0]
[1724313681203,3.78534,2641.8,2641.1,3.0]
[1724313681609,3.78498,2642.1,2641.1,3.0]
[1724313682209,3.78516,2641.9,2641.1,3.0]
[1724313682525,7.5704,2641.9,2641.1,3.0]
[1724313682720,4.54236,2641.8,2641.1,3.0]
[1724313682924,0.75704,2641.8,2641.1,3.0]
[1724313683248,3.78566,2641.6,2641.0,9.2726]
[1724313683556,3.78544,2641.7,2641.0,9.2726]
[1724313684503,3.78544,2641.7,2641.1,3.0]
[1724313684724,0.757079,2641.6,2641.1,3.0]
[1724313687105,3.78479,2642.2,2641.2,9.7459]
[1724313687310,3.78479,2642.2,2641.3,3.0]
[1724313687311,3.78501,2642.0,2641.3,3.0]
[1724313687729,3.78479,2642.2,2641.3,3.0]
[1724313687730,3.78487,2642.1,2641.3,3.0]
[1724313688055,4.893349,2642.1,2641.3,3.0]
[1724313688946,1.108479,2642.1,2641.3,3.0]
[1724313689613,1.108479,2642.1,2641.4,9.3769]
[1724313690657,23.48267,2643.7,2641.5,0.7]
[1724313690658,0.59333257,2642.7,2641.5,0.7]
[1724313690802,11.08386,2642.8,2641.7,9.6376]
[1724313691117,11.08386,2642.8,2641.8,3.0]
[1724313691118,3.78401,2642.7,2641.8,3.0]
[1724313691312,5.270779,2642.7,2641.8,3.0]
[1724313692117,1.486769,2642.7,2641.8,3.0]
[1724313692318,3.78459,2642.3,2641.8,3.0]
[1724313692555,3.78472,2642.2,2641.8,3.0]
[1724313692760,7.3,2642.8,2641.9,9.849]
[1724313692761,14.86784,2642.8,2641.9,9.849]
[1724313692928,11.08394,2642.8,2642.0,3.0]
[1724313693128,5.270854,2642.7,2642.0,3.0]
[1724313693579,1.486784,2642.7,2642.1,9.8293]
[1724313693725,3.78394,2642.8,2642.1,9.8293]
[1724313695581,3.7845,2642.4,2641.4,9.0072]
[1724313695881,7.5688,2642.5,2641.6,9.0072]
[1724313696178,7.5688,2642.5,2641.7,3.0]
[1724313696545,3.7844,2642.5,2641.7,3.0]
[1724313696742,7.3,2642.7,2641.8,9.0072]
[1724313696946,0.85124,2642.6,2641.9,3.0]
[1724313697342,0.85124,2642.6,2642.0,9.0072]
[1724313698983,1.2124,2642.8,2642.1,12.0072]
[1724313699548,1.2124,2642.8,2642.2,9.7079]
[1724313699945,1.2124,2642.8,2642.1,3.0]
[1724313700171,3.78402,2642.7,2641.9,9.3721]
[1724313700353,3.78402,2642.7,2642.0,3.0]
[1724313700969,3.78416,2642.6,2642.0,3.0]
[1724313701175,0.378416,2642.5,2642.0,3.0]
[1724313701385,3.78409,2642.7,2642.0,3.0]
[1724313702797,3.7838,2642.9,2642.1,9.7893]
[1724313702963,0.00647189,2643.1,2642.1,9.7893]
[1724313702964,7.56731,2643.0,2642.1,9.7893]
[1724313703168,3.78364,2643.0,2642.1,9.7893]
[1724313703482,0.37901119,2642.9,2642.1,9.7893]
[1724313703667,4.16280119,2642.9,2642.1,9.7893]
[1724313703853,3.78397,2642.8,2642.1,9.7893]
[1724313704199,3.78364,2643.0,2642.1,9.7893]
[1724313704366,3.78364,2643.0,2642.3,9.432]
[1724313704950,3.78994189,2643.1,2642.3,10.3752]
[1724313705192,0.00647189,2643.1,2642.3,10.3752]
[1724313705373,0.00647189,2643.1,2642.5,9.5531]
[1724313705699,0.00647189,2643.1,2642.6,3.0]
[1724313706106,0.00647189,2643.1,2642.7,9.5531]
[1724313706900,3.78372,2642.9,2642.5,3.0]
[1724313707100,0.378372,2642.8,2641.7,9.7757]
[1724313707312,3.7842,2642.6,2641.8,3.0]
[1724313707454,3.7842,2642.6,2641.8,4.34757]
[1724313707655,3.78411,2642.7,2641.8,4.34757]
[1724313707862,3.78411,2642.7,2641.9,9.2436]
[1724313708070,3.78411,2642.7,2642.0,3.0]
[1724313708882,4.17980933,2642.6,2641.9,9.2436]
[1724313709083,0.41798093,2642.5,2641.9,9.2436]
[1724313709882,3.78403,2642.7,2641.9,9.2436]
[1724313710204,3.78394,2642.8,2641.9,9.2436]
[1724313710499,14.17767,2643.0,2641.9,9.9436]
[1724313710707,11.08366,2643.0,2642.1,9.4685]
[1724313710906,2.40805419,2642.9,2642.1,9.4685]
[1724313711203,0.00647189,2643.1,2642.3,9.0563]
[1724313711669,3.78991189,2643.1,2642.3,9.0563]
[1724313712273,0.00647189,2643.1,2642.3,9.0563]
[1724313712466,0.00647189,2643.1,2642.4,3.0]
[1724313712664,4.89617352,2643.1,2642.4,3.0]
[1724313714107,3.78365,2643.0,2642.4,3.0]
[1724313715777,4.89617352,2643.1,2642.4,3.0]
[1724313716176,1.11274352,2643.1,2642.5,9.5565]
[1724313716396,0.00647189,2643.1,2642.5,9.5565]
[1724313716918,0.00647189,2643.1,2642.7,9.5565]
[1724313723413,3.78374,2642.9,2642.4,12.4014]
[1724313723569,3.78388,2642.8,2642.4,3.0]
[1724313723996,3.78388,2642.8,2642.1,9.0153]
[1724313723997,3.78409,2642.7,2642.1,9.0153]
[1724313724199,3.78388,2642.8,2642.1,9.0153]
[1724313724378,3.78415,2642.6,2642.1,9.0153]
[1724313724573,1.290185,2642.5,2641.8,9.5105]
[1724313725679,1.290185,2642.5,2641.9,3.0]
[1724313726345,5.074475,2642.5,2641.9,3.0]
[1724313726715,3.78447,2642.4,2641.8,9.5105]
[1724313727023,0.5074655,2642.3,2641.5,9.0298]
[1724313727231,3.78489,2642.1,2641.5,9.0298]
[1724313727528,3.78485,2642.2,2641.5,9.0298]
[1724313727691,4.73609655,2642.2,2641.5,9.0298]
[1724313727890,8.52091655,2642.2,2641.5,9.0298]
[1724313728218,4.73606655,2642.2,2641.5,9.0298]
[1724313728774,0.95124655,2642.2,2641.5,9.0298]
[1724313728981,0.5074655,2642.3,2641.5,9.0298]
[1724313729187,3.7846,2642.3,2641.5,9.0298]
[1724313729594,3.7846,2642.3,2641.6,3.0]
[1724313730418,3.78433,2642.5,2641.6,3.0]
[1724313731411,3.78452,2642.4,2641.6,3.0]
[1724313731957,3.78433,2642.5,2641.6,3.0]
[1724313732173,0.378433,2642.4,2641.6,3.0]
[1724313732319,3.78463,2642.3,2641.6,3.0]
[1724313732752,4.17995954,2642.6,2641.6,3.0]
[1724313733066,4.17993954,2642.6,2641.6,3.0]
[1724313733272,4.17993954,2642.6,2641.7,9.3481]
[1724313733430,5.19686395,2642.5,2641.7,9.3481]
[1724313733947,5.19686395,2642.5,2641.9,9.7566]
[1724313733948,1.41257395,2642.5,2641.9,9.7566]
[1724313734256,3.78402,2642.7,2641.9,11.73007462]
[1724313734560,3.78402,2642.7,2641.9,9.7566]
[1724313734762,0.756799,2642.6,2641.9,9.7566]
[1724313735318,4.540959,2642.6,2641.9,9.7566]
[1724313735560,3.78444,2642.4,2641.9,9.7566]
[1724313736510,3.78445,2642.4,2641.9,9.7566]
[1724313737324,3.78445,2642.4,2641.8,3.0]
[1724313740758,7.56898,2642.4,2641.8,3.0]
[1724313740946,0.756898,2642.3,2641.8,3.0]
[1724313741146,3.78445,2642.4,2641.8,3.0]
[1724313744938,7.56853,2642.6,2641.8,3.0]
[1724313745137,3.78435,2642.5,2641.8,3.0]
[1724313745539,3.78431,2642.5,2641.8,3.0]
[1724313745855,0.756856,2642.4,2641.8,3.0]
[1724313746570,4.541296,2642.4,2641.8,3.0]
[1724313747642,0.756856,2642.4,2641.8,3.0]